Cogmind - Beta 14 @@@ ROGUE MODE // 2024.08.31 @ 17:52:25 // Winter2022/Polymind Player: f3-rnm Result: Destroyed by G-47 Trooper with Particle Gun Performance ------------- Evolutions (2) 1000 Regions Visited (7) 1400 Robots Destroyed (25) 125 Value Destroyed (634) 634 Prototype IDs (0) 0 Alien Tech Used (0) 0 Bonus (2710) 2710 TOTAL SCORE: 5669 Bonus ------- Polymind Skill 2510 Entered Garrisons 200 Cogmind --------- Core Integrity 0/550 Matter 179/200 Energy 110/110 System Corruption 4% Temperature Cool (15) Movement Walking (120) Location -8/Materials Parts ------- > --- POWER (1) -------- Light Nuclear Core > --- PROPULSION (2) --- Carbon-fiber Leg Carbon-fiber Leg > --- UTILITY (1) ------ Targeting Computer > --- WEAPON (2) ------- Assault Rifle Gauss Rifle > --- INVENTORY (1) ---- (None) Peak State ------------ > --- POWER ------------ Light Nuclear Core > --- PROPULSION ------- Carbon-fiber Leg Carbon-fiber Leg > --- UTILITY ---------- Targeting Computer > --- WEAPON ----------- Assault Rifle Gauss Rifle > --- INVENTORY -------- (None) [Rating: 15] Favorites ----------- Power Light Nuclear Core Engine Light Ion Engine Power Core Light Nuclear Core Propulsion Aluminum Leg Leg Aluminum Leg Wheel Wheel Hover Unit Hover Unit Utility Improved Heat Sink Device Improved Heat Sink Processor Visual Processing Unit Weapon Particle Gun Energy Gun Particle Gun Ballistic Gun Assault Rifle Special Weapon Welding Torch Build | -11 -10 -10 -9 -9 -8 -8 -8 ------- Run | Yrd Mat Min Mat Min Mat Gar Mat Slots Evolved . | . . . . . . . . Power . | . . . . . . . . Propulsion . | . . . . . . . . Utility . | . . . . . . . . Weapon . | . . . . . . . . Parts Attached . | . . . . . . . . Power . | . . . . . . . . Engine . | . . . . . . . . Core . | . . . . . . . . Reactor . | . . . . . . . . Propulsion . | . . . . . . . . Treads . | . . . . . . . . Leg . | . . . . . . . . Wheel . | . . . . . . . . Hover . | . . . . . . . . Flight . | . . . . . . . . Utility . | . . . . . . . . Device . | . . . . . . . . Storage . | . . . . . . . . Processor . | . . . . . . . . Hackware . | . . . . . . . . Protection . | . . . . . . . . Artifact . | . . . . . . . . Weapon . | . . . . . . . . Energy Gun . | . . . . . . . . Energy Cannon . | . . . . . . . . Ballistic Gun . | . . . . . . . . Ballistic Cannon . | . . . . . . . . Launcher . | . . . . . . . . Special Weapon . | . . . . . . . . Impact Weapon . | . . . . . . . . Slashing Weapon . | . . . . . . . . Piercing Weapon . | . . . . . . . . Special Melee Weapon . | . . . . . . . . Unidentified Prototypes . | . . . . . . . . Parts Lost 11 | . 1 5 1 . . 2 2 Power 3 | . . 1 1 . . . 1 Propulsion 5 | . 1 2 . . . 2 . Utility 2 | . . 1 . . . . 1 Weapon 1 | . . 1 . . . . . Highest Loss Streak 3 | . 1 3 1 . . 2 2 To Critical Strikes . | . . . . . . . . Average Slot Usage (%) 77 | . 79 68 86 100 100 97 64 Engine 3 | . . . . 16 16 16 4 Core 10 | . 17 10 14 . . . 4 Leg 19 | . 26 20 34 . . . 10 Hover 7 | . 1 9 1 33 33 30 . Device 13 | . 17 10 18 16 16 16 7 Processor 8 | . . . 1 33 33 33 20 Energy Gun 12 | . 17 18 16 . . . . Ballistic Gun 1 | . . . . . . . 10 Peak Build Rating 15 | . 10 10 10 7 7 7 15 Average Rating 7 | . 8 6 8 7 7 6 7 On Entrance 5 | . . 10 10 7 7 7 5 Naked Turns 151 | . 51 38 28 . . . 34 Heaviest Build 11 | . 9 9 9 4 4 4 11 Greatest Support 30 | 3 20 20 20 12 12 12 30 Greatest Overweight (x) 1 | . . . . . . 1 1 Average Overweight (x) . | . . . . . . . . Largest Inventory Capacity 1 | . 1 1 1 . . . 1 Average Capacity . | . . . . . . . . Most Carried . | . . . . . . . . Average Carried . | . . . . . . . . Final Capacity 1 | . 1 1 . . . . 1 Final Carried . | . . . . . . . . Class Distribution -------------------- 61% | Grunt 21% | Watcher 9% | Cogmind 5% | Hunter Dominant Class ---------------- Grunt | -10/Materials Grunt | -10/Mines Grunt | -9/Materials Watcher | -9/Mines Watcher | -8/Materials Watcher | -8/Garrison Watcher | -8/Materials Resources | -11 -10 -10 -9 -9 -8 -8 -8 ----------- Run | Yrd Mat Min Mat Min Mat Gar Mat Matter Collected 126 | . . . . . . . 126 Remotely . | . . . . . . . . Salvage Created 933 | . 254 226 283 . . . 170 Parts 46 | . 5 12 16 . . . 13 Haulers Intercepted 1 | . . . 1 . . . . Recyclers Shooed . | . . . . . . . . Parts Field Recycled . | . . . . . . . . Retrieved Matter . | . . . . . . . . Parts Self-Destructed . | . . . . . . . . Prevented . | . . . . . . . . Kills | -11 -10 -10 -9 -9 -8 -8 -8 ------- Run | Yrd Mat Min Mat Min Mat Gar Mat Combat Hostiles Destroyed 21 | . 6 8 3 . . . 4 Guns 21 | . 6 8 3 . . . 4 Classes Destroyed 5 | . 2 . 3 . . . . Hauler 1 | . . . 1 . . . . Watcher 3 | . . . 1 . . . 2 Swarmer 9 | . 2 5 . . . . 2 Grunt 10 | . 4 3 1 . . . 2 Sentry 2 | . . . 2 . . . . Best Kill Streak 4 | . 3 4 2 . . . 4 Combat Bots Only 4 | . 3 4 2 . . . 2 Max Kills in Single Turn 1 | . 1 1 1 . . . 1 Gunslinging . | . . . . . . . . Exploded . | . . . . . . . . Melee . | . . . . . . . . Uniques/NPCs Destroyed . | . . . . . . . . Combat | -11 -10 -10 -9 -9 -8 -8 -8 -------- Run | Yrd Mat Min Mat Min Mat Gar Mat Hostile Shots Fired 234 | . 44 32 37 . . 10 111 Missed 88 | . 14 5 16 . . 2 51 Damage Taken 1818 | . 318 340 297 . . 131 732 Core 843 | . 97 143 47 . . 31 525 Absorbed by Shields . | . . . . . . . . Ignored by Resistances 10 | . . . . . . . 10 Core Remaining (%) 64 | 100 . 4 . 88 . . . Volleys Fired 91 | . 37 23 14 . . . 17 Largest 2 | . 1 1 1 . . . 2 Hottest 65 | . 65 65 65 . . . 48 Shots Fired 108 | . 37 23 14 . . . 34 Gun 108 | . 37 23 14 . . . 34 Cannon . | . . . . . . . . Launcher . | . . . . . . . . Special . | . . . . . . . . Kinetic 34 | . . . . . . . 34 Thermal 74 | . 37 23 14 . . . . Explosive . | . . . . . . . . Electromagnetic . | . . . . . . . . Robot Hit Streak 12 | . 12 12 11 . . . 11 Robot Miss Streak 3 | . 3 2 1 . . . 1 Penetration Max 1 | . . . . . . . 1 Secondary Targets 1 | . . . . . . . 1 Max Gunslinging Chain 1 | . . . . . . . 1 Shots Hit Robots 77 | . 23 17 12 . . . 25 Core Hits 43 | . 8 10 7 . . . 18 Critical Kills . | . . . . . . . . Critical Parts Destroyed . | . . . . . . . . Critical Strikes 2 | . . 1 1 . . . . Burn 2 | . . 1 1 . . . . Melee Attacks . | . . . . . . . . Impact . | . . . . . . . . Slashing . | . . . . . . . . Piercing . | . . . . . . . . Sneak Attacks . | . . . . . . . . Combat Hostiles . | . . . . . . . . Follow-up Attacks . | . . . . . . . . Damage Inflicted 1493 | . 361 261 207 . . . 664 Guns 1412 | . 361 261 207 . . . 583 Cannons . | . . . . . . . . Explosions . | . . . . . . . . Melee . | . . . . . . . . Ramming 81 | . . . . . . . 81 Kinetic 583 | . . . . . . . 583 Thermal 829 | . 361 261 207 . . . . Explosive . | . . . . . . . . Electromagnetic . | . . . . . . . . Impact . | . . . . . . . . Slashing . | . . . . . . . . Piercing . | . . . . . . . . Highest Corruption 4 | . . . . . . . 4 Average Corruption 3 | . . . . . . . 3 Corruption Purged . | . . . . . . . . Corruption Blocked . | . . . . . . . . Effects 2 | . . . . . . . 2 Message Errors 1 | . . . . . . . 1 Matter Fused 1 | . . . . . . . 1 Overload Shots . | . . . . . . . . Overflow Damage . | . . . . . . . . Projectiles . | . . . . . . . . Explosions . | . . . . . . . . Melee . | . . . . . . . . Knockbacks 1 | . . . . . . . 1 Impact 1 | . . . . . . . 1 Kinetic . | . . . . . . . . Secondary . | . . . . . . . . Self-Inflicted Damage 32 | . . . . . . . 32 Shots . | . . . . . . . . Rammed 33 | . . . . . . . 33 Targets Rammed 33 | . . . . . . . 33 Kicked . | . . . . . . . . Crushed . | . . . . . . . . Highest Temperature 162 | . 32 162 12 . . 29 25 Average Temperature 23 | . 14 52 5 . . 11 10 Received Heat Transfer 687 | . 126 195 132 . . 90 144 Siege Activations . | . . . . . . . . Robots Corrupted . | . . . . . . . . Combat Hostiles . | . . . . . . . . Parts Fried . | . . . . . . . . Impact Corruptions . | . . . . . . . . Robots Melted . | . . . . . . . . Combat Hostiles . | . . . . . . . . Parts Melted 3 | . 1 . 2 . . . . Heat Transferred 2109 | . 851 703 555 . . . . Parts Sabotaged . | . . . . . . . . Parts Stolen . | . . . . . . . . Parts Stripped . | . . . . . . . . Power Chain Reactions . | . . . . . . . . Alert | -11 -10 -10 -9 -9 -8 -8 -8 ------- Run | Yrd Mat Min Mat Min Mat Gar Mat Peak Influence 338 | . 146 211 331 129 50 82 338 Initial 129 | . . 56 25 129 50 32 29 Average 113 | . 64 122 151 129 50 75 139 Maximum Alert Level 1 | . . 1 1 . . . 1 Low Security (%) 82 | 100 100 68 85 100 100 100 67 Level 1 17 | . . 31 14 . . . 32 Level 2 . | . . . . . . . . Level 3 . | . . . . . . . . Level 4 . | . . . . . . . . Level 5 . | . . . . . . . . High Security . | . . . . . . . . Max Security . | . . . . . . . . Squads Dispatched 2 | . 1 . . . . . 1 Investigation 1 | . 1 . . . . . . Extermination . | . . . . . . . . Reinforcement 1 | . . . . . . . 1 Assault . | . . . . . . . . Garrison . | . . . . . . . . Intercept . | . . . . . . . . Searches Triggered . | . . . . . . . . Construction Impeded . | . . . . . . . . Haulers Reinforced . | . . . . . . . . Active Scanning Responses . | . . . . . . . . Cargo Convoy Interrupts . | . . . . . . . . Stealth | -11 -10 -10 -9 -9 -8 -8 -8 --------- Run | Yrd Mat Min Mat Min Mat Gar Mat Distress Signals 2 | . . . 1 . . . 1 Communications Jammed . | . . . . . . . . Distress Signals . | . . . . . . . . Times Spotted 83 | . 10 18 21 . . 3 31 Peak Tracking Total 10 | . 3 4 7 . . 3 10 Tactical Retreats 7 | . . 3 1 . . . 3 Traps | -11 -10 -10 -9 -9 -8 -8 -8 ------- Run | Yrd Mat Min Mat Min Mat Gar Mat Traps Triggered 2 | . 1 . 1 . . . . Indirectly . | . . . . . . . . Trap Hack Attempts . | . . . . . . . . Triggered . | . . . . . . . . Disarmed . | . . . . . . . . Reprogrammed . | . . . . . . . . Reused . | . . . . . . . . Traps Extracted . | . . . . . . . . Installed . | . . . . . . . . Triggered . | . . . . . . . . Machines | -11 -10 -10 -9 -9 -8 -8 -8 ---------- Run | Yrd Mat Min Mat Min Mat Gar Mat Machines Disabled . | . . . . . . . . Max in Single Turn . | . . . . . . . . Machines Repaired . | . . . . . . . . Machines Dismantled . | . . . . . . . . Machines Sabotaged . | . . . . . . . . Overloaded Fab Kills . | . . . . . . . . Hacking | -11 -10 -10 -9 -9 -8 -8 -8 --------- Run | Yrd Mat Min Mat Min Mat Gar Mat Machines Accessed 3 | . 1 . . . 1 1 . Terminals 1 | . . . . . . 1 . Fabricators . | . . . . . . . . Repair Stations 1 | . 1 . . . . . . Recycling Units . | . . . . . . . . Scanalyzers . | . . . . . . . . Garrison Access 1 | . . . . . 1 . . Total Hacks 6 | . 3 . . . 1 2 . Successful 2 | . 1 . . . 1 . . Failed 4 | . 2 . . . . 2 . Catastrophic 1 | . . . . . . 1 . Database Lockouts . | . . . . . . . . Manual . | . . . . . . . . Terminals 2 | . . . . . . 2 . Fabricators . | . . . . . . . . Repair Stations 3 | . 3 . . . . . . Recycling Units . | . . . . . . . . Scanalyzers . | . . . . . . . . Garrison Access 1 | . . . . . 1 . . Terminal Hacks . | . . . . . . . . Fabricator Hacks . | . . . . . . . . Repair Station Hacks 1 | . 1 . . . . . . Refit 1 | . 1 . . . . . . Recycling Unit Hacks . | . . . . . . . . Scanalyzer . | . . . . . . . . Garrison Access Hacks 1 | . . . . . 1 . . Unlock Access 1 | . . . . . 1 . . Unauthorized Hacks . | . . . . . . . . Terminals . | . . . . . . . . Fabricators . | . . . . . . . . Repair Stations . | . . . . . . . . Recycling Units . | . . . . . . . . Scanalyzers . | . . . . . . . . Garrison Access . | . . . . . . . . Data Cores Recovered . | . . . . . . . . Used . | . . . . . . . . Hacking Detections 1 | . . . . . . 1 . Full Trace Events 1 | . . . . . . 1 . Feedback Events . | . . . . . . . . Feedback Blocked . | . . . . . . . . Robot Schematics Acquired . | . . . . . . . . Robots Built . | . . . . . . . . Authchips . | . . . . . . . . Time . | . . . . . . . . Total Robot Build Rating . | . . . . . . . . Part Schematics Acquired . | . . . . . . . . Parts Built . | . . . . . . . . Authchips . | . . . . . . . . Time . | . . . . . . . . Total Part Build Rating . | . . . . . . . . Parts Repaired . | . . . . . . . . Time . | . . . . . . . . Parts Recycled . | . . . . . . . . Recycled Matter . | . . . . . . . . Retrieved Matter . | . . . . . . . . Retrieved Components . | . . . . . . . . Parts Scanalyzed . | . . . . . . . . Part Schematics Acquired . | . . . . . . . . Parts Damaged . | . . . . . . . . Bothacking | -11 -10 -10 -9 -9 -8 -8 -8 ------------ Run | Yrd Mat Min Mat Min Mat Gar Mat Used RIF Installer . | . . . . . . . . Robots Hacked 7 | . 1 1 1 . . . 4 Non-combat 4 | . . . 1 . . . 3 Combat 3 | . 1 1 . . . . 1 Robot Hacks Applied 11 | . 1 1 2 . . . 7 map_walls 1 | . . . . . . . 1 map_route 3 | . . . 1 . . . 2 mark_security 3 | . . . 1 . . . 2 find_shortcuts 3 | . 1 1 . . . . 1 find_garrison 1 | . . . . . . . 1 Relay Couplers Released . | . . . . . . . . Fabnet Peak Effective % . | . . . . . . . . Robots Rewired . | . . . . . . . . Allies Hacked . | . . . . . . . . Hacks Repelled . | . . . . . . . . Allies | -11 -10 -10 -9 -9 -8 -8 -8 -------- Run | Yrd Mat Min Mat Min Mat Gar Mat Total Allies . | . . . . . . . . Largest Group . | . . . . . . . . Highest-Rated Group . | . . . . . . . . Highest-Rated Ally . | . . . . . . . . Total Orders . | . . . . . . . . Ally Attacks . | . . . . . . . . Total Damage . | . . . . . . . . Kills . | . . . . . . . . Allies Corrupted . | . . . . . . . . Allies Melted . | . . . . . . . . Intel | -11 -10 -10 -9 -9 -8 -8 -8 ------- Run | Yrd Mat Min Mat Min Mat Gar Mat Robot Analysis Total 4 | . 1 . 1 . . . 2 Derelict Logs Recovered 2 | . . 1 . 1 . . . Drone Launches . | . . . . . . . . Drone Recoveries . | . . . . . . . . Exploration | -11 -10 -10 -9 -9 -8 -8 -8 ------------- Run | Yrd Mat Min Mat Min Mat Gar Mat Turns Passed 1676 | 11 349 475 318 76 20 132 295 Spaces Moved 1637 | 21 271 390 277 135 34 230 279 Core 435 | 21 86 73 56 . . 10 189 Treads . | . . . . . . . . Legs 738 | . 185 317 204 . . . 32 Wheels 58 | . . . . . . . 58 Hover 406 | . . . 17 135 34 220 . Flight . | . . . . . . . . Fastest Speed 50 | 50 50 50 50 56 56 56 50 Average Speed 85 | 50 97 106 101 56 56 57 71 Slowest Speed 120 | 50 120 120 120 56 56 100 120 Overloaded Moves . | . . . . . . . . Propulsion Burnouts . | . . . . . . . . Robots Hopped . | . . . . . . . . Cave-ins Triggered . | . . . . . . . . Exploration Rate (%) 28 | 3 31 56 26 46 5 43 20 Regions Visited 7 Branch Regions 2 Pre-discovered Areas . | . . . . . . . . Known Exits Taken 3 | . . . 1 1 1 . . Unknown Exits Taken 3 | 1 1 1 . . . . . Scrap Searched 2 | . . 1 . 1 . . . Spaces Dug . | . . . . . . . . Terrain Destroyed . | . . . . . . . . Melee . | . . . . . . . . Projectile . | . . . . . . . . AOE . | . . . . . . . . Terrain Rammed . | . . . . . . . . Walls Destroyed . | . . . . . . . . Machines Disabled . | . . . . . . . . Actions | -11 -10 -10 -9 -9 -8 -8 -8 --------- Run | Yrd Mat Min Mat Min Mat Gar Mat Total 1796 | 20 318 425 298 134 34 228 339 Wait 37 | . 11 13 8 . . . 5 Move 1630 | 20 270 389 276 134 34 228 279 Hop . | . . . . . . . . Pick Up . | . . . . . . . . Fast Attach . | . . . . . . . . Attach . | . . . . . . . . Detach . | . . . . . . . . Swap . | . . . . . . . . Drop . | . . . . . . . . Fire 91 | . 37 23 14 . . . 17 Melee . | . . . . . . . . Ram 33 | . . . . . . . 33 Kick . | . . . . . . . . Crush . | . . . . . . . . Escape Stasis . | . . . . . . . . Rewire 5 | . . . . . . . 5 Trap . | . . . . . . . . Miscellaneous . | . . . . . . . . Route ------- -11/Scrapyard -10/Materials (discovered 2 exits: [*Mat] / [*Min]) -10/Mines -9/Materials -9/Mines -8/Materials (discovered 2 exits: Fac / Gar) -8/Garrison (discovered 2 exits: *Mat x2) -8/Materials (discovered 1 exit: Fac) History --------- Turn | Location | Event 3 | -11/Scrapyard | Discovered new exit (range 15) 12 | -11/Scrapyard | Entered Materials 89 | -10/Materials | Discovered new exit (range 12) 145 | -10/Materials | Discovered new exit (range 11) 361 | -10/Materials | Entered Mines 435 | -10/Mines | Joined a pair of Derelicts in attacking an 0b10 outpost 576 | -10/Mines | Core integrity fell below 50% 613 | -10/Mines | Lost 3 parts (1p1n1u) 729 | -10/Mines | Discovered new exit (range 5) 730 | -10/Mines | Assembled infested the area 791 | -10/Mines | Core integrity fell below 20% 836 | -10/Mines | Entered Materials 1145 | -9/Materials | Discovered new exit (range 15) 1154 | -9/Materials | Identified exit to Mines 1154 | -9/Materials | Entered Mines 1181 | -9/Mines | Learned location of 1 exit from Materials 1192 | -9/Mines | Found a damaged Exp. Sensor Array with a note attached 1221 | -9/Mines | Discovered new exit (range 17) 1229 | -9/Mines | Identified exit to Materials 1230 | -9/Mines | Entered Materials 1231 | -8/Materials | Identified exit to Factory 1250 | -8/Materials | Identified exit to Garrison 1250 | -8/Materials | Entered Garrison 1274 | -8/Garrison | Triggered checkpoint 1312 | -8/Garrison | Discovered new exit (range 9) 1328 | -8/Garrison | Triggered checkpoint 1336 | -8/Garrison | Identified exit to Materials 1337 | -8/Garrison | Attempted to access garrison exit controls, blocked by remote lockdown 1352 | -8/Garrison | Triggered checkpoint 1372 | -8/Garrison | Discovered exit to Materials (range 12) 1382 | -8/Garrison | Entered Materials 1464 | -8/Materials | Discovered exit to Factory (range 52) 1533 | -8/Materials | Core integrity fell below 50% 1578 | -8/Materials | Core integrity fell below 20% 1677 | -8/Materials | Destroyed by G-47 Trooper with Particle Gun Last Messages --------------- 01630_ K-01 Serf collects debris. 01632_ Slug penetrates W-25 Informer. 01632_ W-25 Informer destroyed. 01633_ K-01 Serf collects debris. 01635_ Acquired 18 matter. 01636_ U-05 Engineer builds a Door. 01636_ K-01 Serf collects debris. 01641_ Acquired 63 matter. 01648_ Slug penetrates G-47 Trooper. 01649_ Critical hit (Burn: +37). 01651_ G-47 Trooper destroyed. 01651_ Switching to secondary target: S-10 Pest. 01651_ Slug penetrates S-10 Pest. 01654_ S-10 Pest destroyed. 01654_ Destroyed Welding Torch. 01657_ Acquired 2 matter. 01659_ Acquired 19 matter. 01667_ Acquired 18 Protomatter. 01668_ Slug penetrates Wall. 01671_ Slug penetrates G-47 Trooper. Map ----- +----------------------------------------------------+ | ?????????? ????????# ##""" #????????? | | ?????????? ????????# ##""" [#????????? | | ?????????? ????????# ##""" #????????? | | ?????????# ????????# ## !#????????? | | ?????????# ????????# ## = #????????? | | ?????????# ????????# #########????????? | | ?????????# ????????# ######???????????? | | ?????????# ????????# # ????????????? | | ?????????# #???????# #" "??? #???????? | | ?????????# #???????# #T "?" #???????? | | ?????????# #???????# #" """ #???????? | | ?????????# #???????# # #???????? | | ?????????# #???????# + """ #???????? | | ?????????# #???????# # """ #???????? | | ?????????# #???????# # """ #???????? | | ?????????# ######??# # #???????? | | ?????????# #??# #########????????? | | ?????????# #??# # [#????????? | | ?????????# #??# #! ! #????????? | | ????########## #??# + ! #????????? | | ????# # #??# #########????????? | | ????# # #??# rg#????????????????? | | ????# + #### #????????????????? | | ????# # !################## | | ????# # % !% a%%!%=[!*%+=[ | | ????# # *h% !#############= | | ????# # ##########?????????# | | ????# # # ##??#??????# | | ????# # # ##?????????# | | ????########## + [!##?????????# | | #######?###### # []##?????????# | | # #?# # #% ##?????????# | | # T ! ### # #+########?????????# | | # ### # ### ###########??????###### | | # """ # + # ### # ????????#???????????? | | # """ # # ! # ### # ?? ?????#???????????? | | # """ # ###### ### # ?????? ?#???????????? | | # """ + # ???????#???????????? | | # # # ????????#?#?????????? | | # ] # """ """ # ? ?????##??????????? | | # # """ """ # ???????#?#?????????? | | ####### """ """ # ?#???????????? | | #???## #####+######??????????? | | ???### ###?????????????? | | ????## ##??????????????? | | #??### ############+####???#??????????? | | ?### ## ######### ##??????????????? | | ???? # ##?##???#??????#???????????????? | | ????? # ######### ?????##??????????????? | | #???? # ######### ?????#???????????????? | +----------------------------------------------------+ Best States ------------- Heat Dissipation 43 Energy Generation 19 Energy Capacity 110 Matter Stores 200 Matter Capacity 200 Sight Range 18 Robot Scan Range 14 Terrain Scan Range 14 Terrain Scan Density 85 Resistance: KI 25 Evasion (%) 55 Targeting Accuracy 5 Item Schematics ----------------- None Robot Schematics ------------------ None Fabricated ------------ Nothing Alien Tech Used ----------------- None Achievements -------------- None Challenges ------------ None Polymind | -11 -10 -10 -9 -9 -8 -8 -8 ---------- Run | Yrd Mat Min Mat Min Mat Gar Mat Hosts 7 | . 1 1 1 . . . 4 Combat Hostiles 3 | . 1 1 . . . . 1 Allies . | . . . . . . . . Unique Host Classes 4 | . 1 . 1 . . . 2 Average Host Suspicion 78 | . 89 78 81 26 31 57 89 Unsuspicious Activity 50 | . 15 10 6 . . . 19 Returns to Shadow . | . . . . . . . . Fuzzy Dispatches . | . . . . . . . . Protomatter Created 87 | . . 65 . . . . 22 Used 135 | . 30 30 12 . . . 63 Decayed 39 | . . 35 . . . . 4 Highest Spend 34 | . 30 30 12 . . . 34 Top 5 Hosts by Kills: G-47 Trooper (-10/Materials: 13) G-47 Trooper (-10/Mines: 4) H-55 Commando (-8/Materials: 4) Game ------ Seed PitchforkMiningReplicator Manual? 0 Play Time 00:16:58 Cumulative 245.1 hours Start 2024.08.31 @ 17:04:32 End 2024.08.31 @ 17:52:25 Sessions 1 Manual Loads 0 Difficulty Rogue Special Mode Winter2022/Polymind Game No. 255 Rogue 219 Adventurer 36 Explorer 0 Win Type - Total 10 Types 3/0/7/0/0/0/0/0/0 Lore% 62 Gallery% 82 Achievement% 72 Wizard Run 0 Options --------- Layout 0 ASCII 0 Keyboard 0 Movement Mouse Keybinds 0 Fullscreen 1 Font 18/SmallcapsGlow Map View 76x50 Zoom Use 0% Tactical HUD 1 Map Filters NONE Filters NONE Steam 1 RUN: c1f9f3e3-2e6b-4349-933e-08043a517323